fUST/lending_fUST_20240724
["ID","MTS","AMOUNT","RATE_DAILY","PERIOD"]
[333063613,1721808611149,154.74182857,0.0001137,2]
[333063614,1721808612019,3163.16144283,0.0001212,2]
[333063738,1721808632884,-154.80651967,9.999e-05,2]
[333063740,1721808632893,-200.0,0.0001,2]
[333063742,1721808632902,-400.0,0.0001137,2]
[333063744,1721808632911,-1545.1424558,0.0001212,2]
[333063746,1721808632920,-1625.75328864,0.0001212,2]
[333063748,1721808632929,-848.60176643,0.0001212,2]
[333063750,1721808632938,-981.56131075,0.0001212,2]
[333063853,1721808638156,-1125.35884099,0.0001212,2]
[333063854,1721808638166,-163.31805921,0.0001212,2]
[333063855,1721808638177,-14029.05470467,0.0001212,2]
[333063856,1721808638187,-778.93457464,0.0001212,2]
[333063857,1721808638197,-2590.75312091,0.0001212,2]
[333063858,1721808638207,-521.54710872,0.0001212,2]
[333063859,1721808638216,-493.769143,0.0001212,2]
[333063860,1721808638392,-459.13593927,0.0001212,2]
[333063861,1721808638402,-500.0,0.00012698,2]
[333063862,1721808638412,-367.47234107,0.00012788,2]
[333063863,1721808638421,-3280.13869285,0.00012794,2]
[333063864,1721808638430,-60591.70136842,0.00013,2]
[333063865,1721808638441,-926.18462478,0.00013,2]
[333064037,1721808793477,3000.0,0.000136,30]
[333064038,1721808793801,3000.0,0.0001361,30]
[333064039,1721808794238,3000.0,0.0001362,30]
[333064040,1721808794463,3159.36188,0.0001363,30]
[333064044,1721809394028,3000.0,0.000136,30]
[333064047,1721809533174,-300.0,9.998e-05,2]
[333064048,1721809533200,-300.0,9.998e-05,2]
[333064049,1721809533223,-154.72922386,9.999e-05,2]
[333064050,1721809533246,-154.72922386,9.999e-05,2]
[333064051,1721809533272,-531.01772833,9.999e-05,2]
[333064052,1721809533296,-154.76012181,9.999e-05,2]
[333064053,1721809533323,-154.77557542,9.999e-05,2]
[333064054,1721809533347,-208.46594121,9.999e-05,2]
[333064055,1721809533370,-239.91993655,9.999e-05,2]
[333064056,1721809533395,-180.49137609,9.999e-05,2]
[333064057,1721809533417,-538.8013121,9.999e-05,2]
[333064058,1721809533439,-154.82191157,9.999e-05,2]
[333064059,1721809533462,-941.66960481,9.999e-05,2]
[333064060,1721809533485,-518.81926459,9.999e-05,2]
[333064061,1721809533508,-567.88989652,9.999e-05,2]
[333064062,1721809533532,-154.91461469,9.999e-05,2]
[333064063,1721809533559,-248.85342551,9.999e-05,2]
[333064064,1721809533583,-778.93457464,9.999e-05,2]
[333064065,1721809533607,-188.05852618,9.999e-05,2]
[333064066,1721809533632,-159.93697356,9.999e-05,2]
[333064067,1721809533655,-288.26099683,9.999e-05,2]
[333064068,1721809533678,-968.2231781,9.999e-05,2]
[333064069,1721809533702,-521.54710872,9.999e-05,2]
[333064070,1721809533724,-403.1493765,9.999e-05,2]
[333064071,1721809533746,-156.56045866,9.999e-05,2]
[333064072,1721809533768,-375.56627462,9.999e-05,2]
[333064073,1721809533791,-157.59557264,9.999e-05,2]
[333064074,1721809533814,-321.01725614,9.999e-05,2]
[333064075,1721809533835,-156.62960029,9.999e-05,2]
[333064076,1721809533857,-404.23895254,9.999e-05,2]
[333064077,1721809533879,-155.76238637,9.999e-05,2]
[333064078,1721809533901,-493.769143,9.999e-05,2]
[333064079,1721809533922,-154.68290005,9.999e-05,2]
[333064080,1721809533946,-154.84298939,9.999e-05,2]
[333064081,1721809533967,-403.29212142,9.999e-05,2]
[333064082,1721809533991,-154.76012181,0.0001,2]
[333064083,1721809534013,-190.51091607,0.0001,2]
[333064084,1721809534036,-234.88530218,0.0001,2]
[333064085,1721809534061,-296.47549525,0.0001,2]
[333064086,1721809534082,-190.51091607,0.0001,2]
[333064087,1721809534103,-200.0,0.0001,2]
[333064088,1721809534126,-4056.792128,0.00010261,2]
[333064089,1721809534150,-24900.0,0.00010892,2]
[333064090,1721809534175,-503.71,0.00010959,2]
[333064091,1721809534198,-420.0,0.00010998,2]
[333064092,1721809534221,-243.0,0.00010998,2]
[333064093,1721809534243,-350.0,0.00011,2]
[333064094,1721809534266,-400.0,0.0001137,2]
[333064095,1721809534288,-250.0,0.00011496,2]
[333064096,1721809534316,-250.0,0.00011515,2]
[333064097,1721809534340,-250.0,0.00011546,2]
[333064098,1721809534364,-250.0,0.00011578,2]
[333064099,1721809534387,-250.0,0.0001161,2]
[333064100,1721809534414,-250.0,0.00011641,2]
[333064101,1721809534440,-250.0,0.00011673,2]
[333064102,1721809534464,-250.0,0.00011704,2]
[333064103,1721809534488,-250.0,0.00011736,2]
[333064104,1721809534511,-250.0,0.00011767,2]
[333064105,1721809534536,-250.0,0.00011799,2]
[333064106,1721809534562,-250.0,0.00011831,2]
[333064107,1721809534588,-250.0,0.00011862,2]
[333064108,1721809534613,-250.0,0.00011894,2]
[333064109,1721809534637,-250.0,0.00011925,2]
[333064110,1721809534672,-250.0,0.00011957,2]
[333064111,1721809534697,-250.0,0.00011989,2]
[333064112,1721809534722,-250.0,0.0001202,2]
[333064113,1721809534744,-250.0,0.00012052,2]
[333064114,1721809534767,-250.0,0.00012083,2]
[333064115,1721809534795,-587.0,0.00012098,2]
[333064116,1721809534822,-250.0,0.00012115,2]
[333064117,1721809534845,-4308.2887177,0.00012488,2]
[333064118,1721809534867,-5306.18522335,0.00012662,2]
[333064119,1721809534890,-367.47234107,0.00012749,2]
[333064120,1721809534913,-328.8769611,0.00012869,2]
[333064121,1721809534936,-1905.71107772,0.000129,2]
[333064122,1721809534960,-1905.71107766,0.000129,2]
[333064123,1721809534981,-65271.09907645,0.00013,2]
[333064124,1721809639105,-200.0,0.0001,2]
[333064125,1721809639133,-200.0,0.0001,2]
[333064126,1721809639157,-392.63977075,0.0001137,2]
[333064127,1721809639180,-400.0,0.0001137,2]
[333064128,1721809639205,-250.0,0.00012445,2]
[333064129,1721809639229,-250.0,0.00012479,2]
[333064130,1721809639253,-250.0,0.00012513,2]
[333064131,1721809639277,-250.0,0.00012547,2]
[333064132,1721809639301,-250.0,0.00012582,2]
[333064133,1721809639325,-250.0,0.00012616,2]
[333064134,1721809639352,-250.0,0.0001265,2]
[333064135,1721809639376,-250.0,0.00012684,2]
[333064136,1721809639404,-250.0,0.00012718,2]
[333064137,1721809639431,-250.0,0.00012752,2]
[333064138,1721809639454,-250.0,0.00012786,2]
[333064139,1721809639476,-153.0,0.000128,2]
[333064140,1721809639498,-153.0,0.000128,2]
[333064141,1721809639521,-296.693266,0.000128,2]
[333064142,1721809639546,-250.0,0.0001282,2]
[333064143,1721809639570,-250.0,0.00012855,2]
[333064144,1721809639595,-164.4384805,0.00012869,2]
[333064145,1721809639621,-250.0,0.00012889,2]
[333064146,1721809639648,-155.8846492,0.000129,2]
[333064147,1721809639671,-153.0,0.000129,2]
[333064148,1721809639696,-250.0,0.00012923,2]
[333064149,1721809639721,-250.0,0.00012957,2]
[333064150,1721809639747,-250.0,0.00012991,2]
[333064151,1721809639771,-300.0,0.00012999,2]
[333064152,1721809639793,-116755.39081592,0.00013,2]
[333064216,1721809832339,-223.49808847,9.999e-05,2]
[333064218,1721809832351,-196.19672815,9.999e-05,2]
[333064220,1721809832360,-40.19362711,0.0001,2]
[333064223,1721809832374,-159.80637289,0.0001,2]
[333064225,1721809832385,-248.82,0.00010959,2]
[333064227,1721809832395,-350.0,0.00011334,2]
[333064229,1721809832404,-400.0,0.0001137,2]
[333064231,1721809832413,-300.0,0.00012215,2]
[333064233,1721809832423,-24900.0,0.00012216,2]
[333064235,1721809832433,-164.4384806,0.00012869,2]
[333064237,1721809832445,-6577.24364701,0.000129,2]
[333064239,1721809832455,-99731.10384928,0.00013,2]
[333064242,1721809832476,-1518.48172937,0.00013,2]
[333064245,1721809832488,-8394.38987067,0.00013,2]
[333064247,1721809832499,-1099.01774581,0.00013,2]
[333064472,1721809838293,-8614.56,0.00013,2]
[333064496,1721809842337,-127054.09356063,0.00013,2]
[333064499,1721809843920,-471.64870024,0.00013,2]
[333064500,1721809843941,-7694.68890235,0.00013,2]
[333064501,1721809843954,-1471.12326077,0.00013,2]
[333064502,1721809844684,-14346.412989,0.00013,2]
[333064503,1721809844926,-5295.36,0.00013,2]
[333064504,1721809844943,-1746.5,0.00013,2]
[333064520,1721809847705,-16518.73757815,0.00013,2]
[333064521,1721809847718,-57394.68164126,0.00013,2]
[333064522,1721809847729,-7523.67009285,0.00013,2]
[333064523,1721809847740,-2000.0,0.00013,2]
[333064524,1721809847750,-1539.18645024,0.00013,2]
[333064525,1721809847762,-1670.21081022,0.00013,2]
[333064526,1721809847774,-1651.41849618,0.00013,2]
[333064527,1721809847786,-4146.32733112,0.00013,2]
[333064528,1721809847797,-154.69635411,0.00013,2]
[333064529,1721809847807,-153.0,0.00013,2]
[333064530,1721809847817,-154.98579025,0.00013,2]
[333064531,1721809847832,-3098.08745181,0.00013,2]
[333064532,1721809847842,-153.0,0.00013,2]
[333064533,1721809847853,-152556.49857417,0.00013,2]
[333064534,1721809847863,-154.86951377,0.00013,2]
[333064535,1721809847872,-154.87906654,0.00013,2]
[333064536,1721809847883,-154.82195475,0.00013,2]
[333064537,1721809847895,-153.8676,0.00013,2]
[333064538,1721809847907,-277.840706,0.00013,2]
[333064539,1721809847917,-430.8713912,0.00013,2]
[333064540,1721809847928,-250.0,0.00013025,2]
[333064541,1721809847939,-250.0,0.00013059,2]
[333064542,1721809847951,-6577.24364701,0.00013073,2]
[333064543,1721809847961,-250.0,0.00013094,2]
[333064544,1721809847974,-153.0,0.000131,2]
[333064545,1721809847985,-600.0,0.00013147,2]
[333064546,1721809847996,-352.33930241,0.00013221,2]
[333064547,1721809848006,-6577.24364701,0.00013245,2]
[333064548,1721809848016,-151.696639,0.00013335,2]
[333064549,1721809848026,-218.646936,0.00013335,2]
[333064550,1721809848036,-151.0,0.00013335,2]
[333064551,1721809848046,-218.646936,0.00013335,2]
[333064552,1721809848056,-151.389932,0.00013335,2]
[333064553,1721809848066,-151.0,0.00013335,2]
[333064554,1721809848078,-151.0,0.00013335,2]
[333064555,1721809848087,-151.0,0.00013335,2]
[333064556,1721809848098,-12795.60812423,0.00013335,2]
[333064557,1721809848108,-3152.76719724,0.0001338,2]
[333064558,1721809848119,-6577.24364701,0.00013418,2]
[333064559,1721809848129,-1905.71107766,0.0001342,2]
[333064560,1721809848139,-200.0,0.00013425,2]
[333064561,1721809848149,-420.0,0.00013437,2]
[333064562,1721809848158,-180.85453,0.00013453,2]
[333064563,1721809848167,-150.30539,0.00013453,2]
[333064564,1721809848177,-212.384086,0.00013453,2]
[333064565,1721809848187,-212.384084,0.00013453,2]
[333064566,1721809848196,-168.368593,0.00013453,2]
[333064567,1721809848205,-157.225884,0.00013453,2]
[333064568,1721809848214,-152.753812,0.00013453,2]
[333064569,1721809848223,-179.936094,0.00013453,2]
[333064570,1721809848233,-151.0,0.00013458,2]
[333064571,1721809848242,-151.0,0.00013458,2]
[333064572,1721809848252,-278.769946,0.00013458,2]
[333064573,1721809848263,-151.0,0.00013458,2]
[333064574,1721809848273,-278.769946,0.00013458,2]
[333064575,1721809848283,-151.0,0.00013458,2]
[333064576,1721809848295,-151.0,0.00013458,2]
[333064577,1721809848304,-151.0,0.00013458,2]
[333064578,1721809848316,-151.0,0.00013458,2]
[333064579,1721809848330,-151.0,0.00013458,2]
[333064580,1721809848341,-156.381407,0.00013475,2]
[333064581,1721809848351,-151.331606,0.00013475,2]
[333064582,1721809848361,-171.301765,0.00013475,2]
[333064583,1721809848374,-1812.369792,0.000135,3]
[333064584,1721809848384,-153.0,0.00013513,2]
[333064585,1721809848393,-153.0,0.00013513,2]
[333064586,1721809848402,-153.0,0.00013513,2]
[333064587,1721809848412,-153.0,0.00013513,2]
[333064588,1721809848421,-153.0,0.00013513,2]
[333064589,1721809848431,-153.0,0.00013513,2]
[333064590,1721809848440,-153.0,0.00013513,2]
[333064591,1721809848449,-153.0,0.00013513,2]
[333064592,1721809848458,-153.0,0.00013513,2]
[333064593,1721809848468,-153.0,0.00013513,2]
[333064594,1721809848479,-153.0,0.00013513,2]
[333064595,1721809848489,-153.0,0.00013513,2]
[333064596,1721809848498,-153.0,0.00013513,2]
[333064597,1721809848508,-153.0,0.00013513,2]
[333064598,1721809848519,-153.0,0.00013513,2]
[333064599,1721809848530,-153.0,0.00013513,2]
[333064600,1721809848540,-153.0,0.00013513,2]
[333064601,1721809848553,-153.0,0.00013513,2]
[333064602,1721809848563,-153.0,0.00013513,2]
[333064603,1721809848576,-153.0,0.00013513,2]
[333064604,1721809848586,-153.0,0.00013513,2]
[333064605,1721809848596,-153.0,0.00013513,2]
[333064606,1721809848605,-153.0,0.00013513,2]
[333064607,1721809848615,-153.0,0.00013513,2]
[333064608,1721809848626,-153.0,0.00013513,2]
[333064610,1721809848636,-153.0,0.00013513,2]
[333064612,1721809848646,-153.0,0.00013513,2]
[333064614,1721809848656,-153.0,0.00013513,2]
[333064616,1721809848665,-153.0,0.00013513,2]
[333064618,1721809848676,-153.0,0.00013513,2]
[333064620,1721809848686,-153.0,0.00013513,2]
[333064622,1721809848696,-24344.0726308,0.00013514,2]
[333064624,1721809848705,-151.0,0.00013514,2]
[333064626,1721809848716,-151.0,0.00013542,2]
[333064628,1721809848726,-151.0,0.00013542,2]
[333064630,1721809848735,-278.769946,0.00013542,2]
[333064632,1721809848747,-151.0,0.00013542,2]
[333064634,1721809848760,-278.769946,0.00013542,2]
[333064636,1721809848771,-151.0,0.00013542,2]
[333064638,1721809848781,-151.0,0.00013542,2]
[333064640,1721809848791,-151.0,0.00013542,2]
[333064643,1721809848803,-151.0,0.00013542,2]
[333064645,1721809848817,-151.0,0.00013542,2]
[333064647,1721809848830,-153.0,0.00013542,2]
[333064649,1721809848840,-153.0,0.00013542,2]
[333064651,1721809848850,-153.0,0.00013542,2]
[333064652,1721809848860,-153.0,0.00013542,2]
[333064654,1721809848869,-153.0,0.00013542,2]
[333064656,1721809848879,-153.0,0.00013542,2]
[333064658,1721809848890,-153.0,0.00013542,2]
[333064660,1721809848901,-153.0,0.00013542,2]
[333064662,1721809848912,-153.0,0.00013542,2]
[333064664,1721809848922,-153.0,0.00013542,2]
[333064666,1721809848933,-153.0,0.00013542,2]
[333064668,1721809848943,-153.0,0.00013542,2]
[333064670,1721809848953,-153.0,0.00013542,2]
[333064672,1721809848962,-153.0,0.00013542,2]
[333064674,1721809848971,-153.0,0.00013542,2]
[333064676,1721809848981,-153.0,0.00013542,2]
[333064678,1721809848991,-153.0,0.00013542,2]
[333064679,1721809849000,-153.0,0.00013542,2]
[333064681,1721809849010,-151.0,0.00013552,2]
[333064683,1721809849019,-152.171668,0.00013552,2]
[333064685,1721809849028,-151.0,0.00013552,2]
[333064687,1721809849038,-151.0,0.00013552,2]
[333064689,1721809849048,-218.646936,0.00013552,2]
[333064691,1721809849058,-151.0,0.00013552,2]
[333064693,1721809849068,-218.646936,0.00013552,2]
[333064695,1721809849079,-151.0,0.00013552,2]
[333064697,1721809849089,-151.0,0.00013552,2]
[333064699,1721809849098,-150.0,0.00013556,2]
[333064701,1721809849107,-642.326,0.00013556,2]
[333064703,1721809849117,-1409.0,0.00013556,2]
[333064705,1721809849128,-151.0,0.00013575,2]
[333064707,1721809849138,-151.0,0.00013575,2]
[333064709,1721809849147,-151.0,0.00013575,2]
[333064711,1721809849157,-218.646936,0.00013575,2]
[333064713,1721809849167,-151.0,0.00013575,2]
[333064715,1721809849177,-218.646936,0.00013575,2]
[333064717,1721809849186,-151.0,0.00013575,2]
[333064719,1721809849197,-151.0,0.00013575,2]
[333064721,1721809849207,-151.0,0.00013575,2]
[333064723,1721809849218,-151.0,0.00013575,2]
[333064725,1721809849228,-278.769946,0.00013575,2]
[333064727,1721809849238,-151.0,0.00013575,2]
[333064728,1721809849249,-278.769946,0.00013575,2]
[333064730,1721809849260,-151.0,0.00013575,2]
[333064732,1721809849269,-151.0,0.00013575,2]
[333064734,1721809849280,-151.0,0.00013575,2]
[333064736,1721809849291,-240.588607,0.00013575,2]
[333064738,1721809849301,-359.74195,0.00013575,2]
[333064740,1721809849311,-359.74195,0.00013575,2]
[333064742,1721809849323,-218.646936,0.00013576,2]
[333064744,1721809849333,-151.0,0.00013576,2]
[333064746,1721809849343,-218.646936,0.00013576,2]
[333064748,1721809849355,-2000.0,0.0001358,2]
[333064750,1721809849366,-151.0,0.0001358,2]
[333064752,1721809849376,-161.278551,0.00013582,2]
[333064754,1721809849387,-191.361717,0.00013582,2]
[333064755,1721809849397,-151.0,0.00013582,2]
[333064756,1721809849410,-151.0,0.00013582,2]
[333064757,1721809849421,-151.0,0.00013582,2]
[333064758,1721809849433,-194.302186,0.00013582,2]
[333064759,1721809849444,-151.0,0.00013582,2]
[333064761,1721809849454,-151.0,0.0001359,2]
[333064762,1721809849464,-151.0,0.0001359,2]
[333064765,1721809849476,-278.769946,0.0001359,2]
[333064767,1721809849488,-278.769946,0.0001359,2]
[333064769,1721809849499,-151.0,0.0001359,2]
[333064771,1721809849510,-151.0,0.0001359,2]
[333064773,1721809849522,-179.68927,0.0001359,2]
[333064775,1721809849533,-24344.0726308,0.0001359,2]
[333064777,1721809849544,-151.072774,0.0001359,2]
[333064779,1721809849557,-151.072774,0.0001359,2]
[333064781,1721809849568,-6577.24364701,0.0001359,2]
[333064783,1721809849580,-151.0,0.0001359,2]
[333064784,1721809849591,-151.0,0.0001359,2]
[333064786,1721809849600,-151.0,0.0001359,2]
[333064788,1721809849611,-151.0,0.00013593,2]
[333064790,1721809849621,-151.0,0.00013593,2]
[333064792,1721809849631,-218.646936,0.00013593,2]
[333064794,1721809849642,-151.0,0.00013593,2]
[333064796,1721809849651,-218.646936,0.00013593,2]
[333064798,1721809849660,-151.0,0.00013598,2]
[333064800,1721809849670,-151.0,0.00013598,2]
[333064802,1721809849680,-1356.43987699,0.00013598,2]
[333064804,1721809849689,-151.0,0.00013599,2]
[333064806,1721809849698,-151.0,0.00013599,2]
[333064828,1721809849921,-359.74195,0.00013599,2]
[333064830,1721809849931,-359.74195,0.00013599,2]
[333064832,1721809849943,-153.0,0.00013599,2]
[333064834,1721809849954,-153.0,0.00013599,2]
[333064836,1721809849964,-306.0,0.00013599,2]
[333064839,1721809849976,-171.8096642,0.00013599,2]
[333064841,1721809849986,-1999.99999971,0.000136,3]
[333064843,1721809849997,-150.112233,0.000136,2]
[333064845,1721809850007,-150.112233,0.000136,2]
[333064847,1721809850018,-150.112233,0.000136,2]
[333064849,1721809850030,-150.112233,0.000136,2]
[333064851,1721809850041,-150.112233,0.000136,2]
[333064854,1721809850052,-150.112233,0.000136,2]
[333064856,1721809850063,-150.112233,0.000136,2]
[333064858,1721809850076,-150.112233,0.000136,2]
[333064860,1721809850087,-150.112233,0.000136,2]
[333064863,1721809850099,-150.112233,0.000136,2]
[333064865,1721809850108,-150.112233,0.000136,2]
[333064867,1721809850119,-150.112233,0.000136,2]
[333064869,1721809850130,-150.112233,0.000136,2]
[333064871,1721809850142,-150.112233,0.000136,2]
[333064873,1721809850152,-150.112233,0.000136,2]
[333064876,1721809850163,-150.112233,0.000136,2]
[333064878,1721809850176,-150.112233,0.000136,2]
[333064880,1721809850188,-150.112233,0.000136,2]
[333064883,1721809850198,-150.112233,0.000136,2]
[333064885,1721809850209,-150.112233,0.000136,2]
[333064887,1721809850219,-150.112233,0.000136,2]
[333064889,1721809850231,-218.646936,0.000136,2]
[333064891,1721809850242,-276.395996,0.000136,2]
[333064894,1721809850253,-218.646936,0.000136,2]
[333064896,1721809850264,-150.112233,0.000136,2]
[333064898,1721809850276,-1000.0,0.000136,2]
[333064900,1721809850286,-151.0,0.000136,2]
[333064902,1721809850297,-151.0,0.000136,2]
[333064904,1721809850306,-278.769946,0.000136,2]
[333064906,1721809850317,-278.769946,0.000136,2]
[333064908,1721809850329,-151.0,0.000136,2]
[333064911,1721809850340,-151.0,0.000136,2]
[333064913,1721809850350,-168.0,0.0001361,2]
[333064915,1721809850360,-150.30539,0.00013621,2]
[333064917,1721809850372,-215.121786,0.0001363,2]
[333064919,1721809850383,-151.0,0.0001363,2]
[333064922,1721809850394,-218.646936,0.0001363,2]
[333064924,1721809850405,-218.646936,0.0001363,2]
[333064926,1721809850416,-151.0,0.0001363,2]
[333064928,1721809850426,-151.0,0.0001363,2]
[333064930,1721809850436,-278.769946,0.0001363,2]
[333064932,1721809850446,-278.769946,0.0001363,2]
[333064934,1721809850456,-151.0,0.0001363,2]
[333064937,1721809850467,-151.0,0.0001363,2]
[333064939,1721809850477,-359.74195,0.0001363,2]
[333064941,1721809850487,-359.74195,0.0001363,2]
[333064943,1721809850497,-756.02778746,0.00013632,2]
[333064945,1721809850508,-1000.0,0.00013642,2]
[333064947,1721809850520,-151.0,0.0001367,2]
[333064949,1721809850529,-151.0,0.0001367,2]
[333064952,1721809850541,-218.646936,0.0001367,2]
[333064954,1721809850555,-218.646936,0.0001367,2]
[333064956,1721809850564,-151.0,0.0001367,2]
[333064958,1721809850574,-164.382129,0.0001367,2]
[333064960,1721809850584,-278.769946,0.0001367,2]
[333064962,1721809850594,-278.769946,0.0001367,2]
[333064964,1721809850604,-151.0,0.0001367,2]
[333064966,1721809850614,-151.0,0.0001367,2]
[333064968,1721809850625,-151.072774,0.0001367,2]
[333064970,1721809850634,-151.072774,0.0001367,2]
[333064972,1721809850643,-151.0,0.0001367,2]
[333064974,1721809850653,-151.0,0.0001367,2]
[333064976,1721809850662,-20537.29957244,0.00013672,2]
[333064978,1721809850672,-151.0,0.00013672,2]
[333064980,1721809850681,-180.85453,0.00013677,2]
[333064982,1721809850690,-152.753812,0.00013677,2]
[333064985,1721809850699,-24344.0726308,0.00013678,2]
[333064987,1721809850709,-15000.0,0.0001368,2]
[333064989,1721809850718,-3435.73,0.0001368,2]
[333064991,1721809850728,-151.0,0.0001368,2]
[333064993,1721809850737,-151.0,0.0001368,2]
[333064995,1721809850747,-151.0,0.0001368,2]
[333064997,1721809850756,-151.0,0.0001368,2]
[333064999,1721809850766,-151.0,0.0001368,2]
[333065001,1721809850775,-280.441087,0.0001368,2]
[333065003,1721809850784,-218.646936,0.0001368,2]
[333065005,1721809850794,-218.646936,0.0001368,2]
[333065007,1721809850804,-218.646936,0.0001368,2]
[333065009,1721809850814,-218.64692871,0.0001368,2]
[333065011,1721809850824,-151.0,0.0001368,2]
[333065013,1721809850833,-278.769946,0.0001368,2]
[333065015,1721809850843,-278.769946,0.0001368,2]
[333065017,1721809850852,-151.0,0.0001368,2]
[333065019,1721809850862,-151.0,0.0001368,2]
[333065021,1721809850871,-359.74195,0.0001368,2]
[333065023,1721809850880,-359.74195,0.0001368,2]
[333065025,1721809850890,-151.072774,0.0001368,2]
[333065027,1721809850900,-151.072774,0.0001368,2]
[333065029,1721809850910,-151.0,0.0001368,2]
[333065031,1721809850919,-151.0,0.0001368,2]
[333065033,1721809850928,-151.0,0.0001368,2]
[333065035,1721809850938,-151.0,0.00013688,2]
[333065037,1721809850947,-151.0,0.00013688,2]
[333065039,1721809850957,-151.0,0.00013688,2]
[333065042,1721809850966,-151.0,0.00013688,2]
[333065044,1721809850976,-151.0,0.00013688,2]
[333065046,1721809850985,-151.0,0.00013688,2]
[333065048,1721809850996,-278.769946,0.00013688,2]
[333065050,1721809851005,-278.769946,0.00013688,2]
[333065052,1721809851015,-278.769946,0.00013688,2]
[333065054,1721809851025,-278.769948,0.00013688,2]
[333065056,1721809851034,-151.0,0.00013688,2]
[333065058,1721809851045,-151.0,0.00013688,2]
[333065060,1721809851054,-151.0,0.00013688,2]
[333065062,1721809851064,-151.0,0.00013688,2]
[333065064,1721809851077,-359.74195,0.00013688,2]
[333065066,1721809851086,-359.74195,0.00013688,2]
[333065069,1721809851097,-151.0,0.00013688,2]
[333065071,1721809851107,-56131.27706583,0.00013688,2]
[333065513,1721809961294,1000.0,0.00015,29]
[333065514,1721809993773,3000.0,0.000136,30]
[333065524,1721810592275,3000.0,0.000136,30]
[333065529,1721810841192,-300.0,9.998e-05,2]
[333065530,1721810841215,-188.05852618,9.999e-05,2]
[333065531,1721810841238,-288.26099683,9.999e-05,2]
[333065532,1721810841260,-248.79975922,9.999e-05,2]
[333065533,1721810841281,-156.91471787,9.999e-05,2]
[333065534,1721810841303,-779.30603176,9.999e-05,2]
[333065535,1721810841325,-154.68290005,9.999e-05,2]
[333065536,1721810841345,-413.45473308,9.999e-05,2]
[333065537,1721810841367,-968.2231781,9.999e-05,2]
[333065538,1721810841389,-36.59877656,9.999e-05,2]
[333065590,1721811038541,-300.0,9.998e-05,2]
[333065592,1721811038552,-118.25402679,9.999e-05,2]
[333065594,1721811038562,-378.91875079,9.999e-05,2]
[333065740,1721811043513,-24.23062571,9.999e-05,2]
[333065741,1721811043524,-155.48975656,9.999e-05,2]
[333065742,1721811043534,-247.55158444,9.999e-05,2]
[333065743,1721811043544,-243.32878953,9.999e-05,2]
[333065744,1721811043554,-521.98168148,9.999e-05,2]
[333065745,1721811043564,-235.6378508,9.999e-05,2]
[333065746,1721811043574,-848.60176643,9.999e-05,2]
[333065747,1721811043583,-2110.33261488,9.999e-05,2]
[333065748,1721811043595,-1628.33517932,9.999e-05,2]
[333065749,1721811043605,-3024.69035047,9.999e-05,2]
[333065776,1721811192854,150.5,0.00017844,120]
[333065777,1721811193125,150.5,0.00017844,120]
[333065778,1721811193244,162.0,0.00017844,120]
[333065779,1721811193330,150.5,0.00017834,120]
[333065780,1721811193453,150.5,0.00017844,120]
[333065781,1721811193665,154.31,0.00017834,120]
[333065782,1721811193817,162.0,0.00017834,120]
[333065783,1721811193849,152.6,0.00017824,120]
[333065784,1721811193923,150.5,0.00017834,120]
[333065785,1721811194279,162.0,0.00017824,120]